Workbook

Sheet 1. Forside
A1: Verdo Vand A/S
D8: Bilag A
D13: Indholdsfortegnelse
C16: Fane nr. 2 | D16: Samlet prisloft
C17: Fane nr. 3 | D17: Driftsomkostninger
C18: Fane nr. 4 | D18: Historiske investeringer
C19: Fane nr. 5 | D19: Gennemførte investeringer
C20: Fane nr. 6 | D20: Korrektion investeringer
C21: Fane nr. 7 | D21: Planlagte investeringer
C22: Fane nr. 8 | D22: 1:1 omkostninger
C23: Fane nr. 9 | D23: Miljø- og servicemål
C24: Fane nr. 10 | D24: Nettofinansielle poster
C25: Fane nr. 11 | D25: Over- eller underdækning
C26: Fane nr. 12 | D26: Kontrol med indtægtsrammen og oversigt over ekstraordinære effektiviseringsgevinster

Sheet 2. Samlet prisloft
A1: ='1. Forside'!A1 -> Verdo Vand A/S
B4: Fane 2. Samlet prisloft for 2015
B6: Driftsomkostninger
B7: Driftsomkostninger i prisloftet for 2014 | C7: ='3. Driftsomkostninger'!C21 -> 11663423.87 | D7: kr.
B8: Bortfald af væsentlige omkostninger | C8: =-'3. Driftsomkostninger'!C17 -> 0 | D8: kr.
B9: Korrektion for prisudviklingen 2014-2015 | C9: ='3. Driftsomkostninger'!C23 -> 9330.739096 | D9: kr.
B10: Forhøjelse til effektivt niveau iht. benchmarkingen | C10: ='3. Driftsomkostninger'!C29 -> 0 | D10: kr.
B11: Korrektion for generelt effektiviseringskrav | C11: =-'3. Driftsomkostninger'!C35 -> -51319.06503 | D11: kr.
B12: Korrektion for individuelt effektiviseringskrav | C12: =-'3. Driftsomkostninger'!C44 -> 0 | D12: kr.
B13: Driftsomkostninger i alt | C13: =SUM(C7:C12) -> 11621435.54 | D13: kr. | E13: =C13 -> 11621435.54 | F13: kr.
B14: Investeringer
B15: Tillæg for historiske investeringer | C15: ='4. Historiske investeringer'!C9 -> 7973148.139 | D15: kr.
B16: Tillæg for gennemførte investeringer i 2011-2013 | C16: ='5. Gennemførte investeringer'!F27 -> 1028089.212 | D16: kr.
B17: Korrektion af tillæg for planlagte investeringer vedrørende 2013 | C17: ='6. Korrektion investeringer'!C10 -> -123897.3867 | D17: kr.
B18: Tillæg for planlagte investeringer i 2014 og 2015 | C18: ='7. Planlagte investeringer'!F44 -> 642125.2333 | D18: kr.
B19: Investeringstillæg i alt | C19: =SUM(C15:C18) -> 9519465.197 | D19: kr. | E19: =C19 -> 9519465.197 | F19: kr.
B20: Øvrige omkostninger mv.
B21: Tillæg for 1:1 omkostninger i 2015 | C21: ='8. 1-1 omkostninger'!C11 -> 669000 | D21: kr.
B22: Tillæg for afgift for ledningsført vand i 2015 | C22: ='8. 1-1 omkostninger'!C16 -> 14099000 | D22: kr.
B23: Tillæg vedr. revisorerklæringer og DANVA/FVD-kontingent | C23: ='8. 1-1 omkostninger'!C22 -> 153000 | D23: kr.
B24: Korrektion ift. faktiske 1:1 omkostninger i 2013 | C24: ='8. 1-1 omkostninger'!C28 -> 1552983 | D24: kr.
B25: Tillæg for driftsomkostninger til miljø- og servicemål i 2015 | C25: ='9. Miljø- og servicemål'!C8 -> 283000 | D25: kr.
B26: Korrektion ift. faktiske driftsomkostninger til miljø- og servicemål i 2013 | C26: ='9. Miljø- og servicemål'!C15 -> -34166 | D26: kr.
B27: Tillæg/fradrag for nettofinansielle poster i 2015 | C27: ='10. Nettofinansielle poster'!C9 -> 3000000 | D27: kr.
B28: Korrektion ift. faktiske nettofinansielle poster i 2013 | C28: ='10. Nettofinansielle poster'!C16 -> -1539881 | D28: kr.
B29: Øvrige omkostninger mv. i alt | C29: =SUM(C21:C28) -> 18182936 | D29: kr. | E29: =C29 -> 18182936 | F29: kr.
B30: Historisk over- eller underdækning
B31: Tillæg/fradrag for over- eller underdækning til og med 2010 | C31: ='11. Over- eller underdækning'!C11 -> -3009491.503 | D31: kr. | E31: =C31 -> -3009491.503 | F31: kr.
B32: Korrektion i forhold til tidligere indtægtsramme
B33: Korrektion for overholdelse af indtægtsramme i prisloft 2013 | C33: ='12. Kontrol med indtægtsrammen'!E27 -> -44177.75153 | D33: kr. | E33: =C33 -> -44177.75153 | F33: kr.
B34: Samlet prisloft
B35: Indtægtsramme i 2015 | E35: =SUM(E13:E33) -> 36270167.49 | F35: kr.
B36: Debiteret vandmængde i 2013 | E36: 2370932 | F36: m3
B37: Prisloft 2015 | E37: =E35/E36 -> 15.29785227 | F37: kr./m3
B38: Prisloft 2015 ekskl. afgift for ledningsført vand | E38: =(E35-C22)/E36 -> 9.351245623 | F38: kr./m3

Sheet 3. Driftsomkostninger
A1: ='1. Forside'!A1 -> Verdo Vand A/S
B4: Fane 3. Driftsomkostninger
B6: Driftsomkostningerne i prisloftet for 2014
B7: Korrigerede driftsomkostninger i prisloftet for 2013 (DOiPL 2013) | C7: 12447623 | D7: kr.
B8: Prisfremskrivning 1,5 pct. | C8: =0.015*SUM(C7:C7) -> 186714.345 | D8: kr.
B9: Generelt effektiviseringskrav (0 pct.) | C9: 0 | D9: kr.
B10: Individuelt effektiviseringskrav | C10: 0 | D10: kr.
B11: Bortfald af midlertidigt tillæg iht. § 8, stk. 5 (inkl. prisfremskrivning) | C11: =-1.015*956565 -> -970913.475 | D11: kr.
B12: Driftsomkostningerne i prisloftet for 2014 (DOiPL 2014) (korrigeret for bortfald af midlertidigt tillæg) | C12: =SUM(C7:C11) -> 11663423.87 | D12: kr.
B15: Korrektion for forventet bortfald af væsentlige omkostninger
B16: Selskabets indberettede bortfald af væsentlige omkostninger inden 2015 | C16: 0 | D16: kr.
B17: Korrektion for forventet bortfald | C17: =SUM(C16:C16) -> 0 | D17: kr.
B20: Korrektion for prisudviklingen fra 2014-2015
B21: Driftsomkostningerne i prisloftet for 2014 | C21: =C12-C17 -> 11663423.87 | D21: kr.
B22: Prisudvikling 2014 - 2015 | C22: 0.08 | D22: pct.
B23: Korrektion for prisudvikling | C23: =C21*(C22/100) -> 9330.739096 | D23: kr.
B26: Eventuel forhøjelse til effektivt niveau iht. benchmarkingen
B27: Selskabets effektive driftsomkostninger iht. benchmarkingen | C27: 10521574.79 | D27: kr.
B28: Selskabets pristalskorrigerede driftsomkostninger i 2015-niveau | C28: =C21+C23 -> 11672754.61 | D28: kr.
B29: Eventuel forhøjelse til effektivt niveau | C29: =IF(C28>C27,0,C27-C28) -> 0 | D29: kr.
B32: Korrektion for generelt effektiviseringskrav
B33: Driftsomkostningerne i prisloftet for 2014 | C33: =C21 -> 11663423.87 | D33: kr.
B34: Generelt effektiviseringskrav | C34: 0.44 | D34: pct.
B35: Endeligt generelt effektiviseringskrav | C35: =C33*(C34/100) -> 51319.06503 | D35: kr.
B38: Korrektion for individuelt effektiviseringskrav
B39: Rå effektiviseringspotentiale | C39: 1141849.21 | D39: kr.
B40: Effektiviseringspotentiale efter eventuel korrektion for særlige forhold | C40: 1141849.21 | D40: kr.
B41: Effektiviseringspotentiale efter forsigtighedshensyn | C41: 0 | D41: kr.
B42: Effektiviseringspotentiale efter eventuel korrektion for sammensætning af signifikante costdrivere | C42: 0 | D42: kr.
B43: Umiddelbart effektiviseringskrav | C43: =C42/4 -> 0 | D43: kr.
B44: Endeligt individuelt effektiviseringskrav | C44: =IF(C43>0.05*C21,0.05*C21,IF(C43<0.01*C21,0,C43)) -> 0 | D44: kr.

Sheet 4. Historiske investeringer
A1: ='3. Driftsomkostninger'!A1 -> Verdo Vand A/S
B4: Fane 4. Historiske investeringer
B6: Tillæg for historiske investeringer
B7: Værdi af selskabets materielle anlægsaktiver pr. 1. januar 2010 | C7: 380504239 | D7: kr.
B8: Den årlige standardafskrivning på de materielle anlægsaktiver iht. POLKA | C8: 7973148.139 | D8: kr.
B9: Tillæg i alt i 2015 | C9: =C8 -> 7973148.139 | D9: kr.

Sheet 5. Gennemførte investeringer
A1: ='4. Historiske investeringer'!A1 -> Verdo Vand A/S
B4: Fane 5. Gennemførte investeringer i 2010 - 2013
B6: Tillæg for gennemførte investeringer i 2013
B7: Beskrivelse af investeringen | C7: Årstal | D7: Std. levetid (år) | E7: Anskaffelses-pris (kr.) | F7: Afskrivning
B8: Ø 50mm < Ledningsnet = Ø110 mm | C8: 2013 | D8: 75 | E8: 3906938 | F8: =E8/D8 -> 52092.50667 | G8: kr.
B9: Ø110 mm < Ledningsnet = Ø 250 mm | C9: 2013 | D9: 75 | E9: 1040905 | F9: 13878.73333 | G9: kr.
B10: Ledningsnet = Ø50 mm | C10: 2013 | D10: 75 | E10: 823882 | F10: 10985.09333 | G10: kr.
B11: Ventiler på Ø 50mm < Ledningsnet = Ø110 mm | C11: 2013 | D11: 75 | E11: 293957 | F11: 3919.426667 | G11: kr.
B12: Ventiler på Ø110 mm < Ledningsnet = Ø 250 mm | C12: 2013 | D12: 75 | E12: 74586 | F12: 994.48 | G12: kr.
B13: Råvandsstation komplet montering og boringshus/tørbrønd | C13: 2013 | D13: 30 | E13: 422225 | F13: =E13/D13 -> 14074.16667 | G13: kr.
B14: SRO-anlæg, vandværk | C14: 2013 | D14: 10 | E14: 42781 | F14: 4278.1 | G14: kr.
B15: Elanlæg - vandværk | C15: 2013 | D15: 25 | E15: 31730 | F15: 1269.2 | G15: kr.
B16: Afregningsmålere, mekaniske | C16: 2013 | D16: 8 | E16: 262676 | F16: 32834.5 | G16: kr.
B17: Instrumenter (flowmåler+tryk transducer+alarmer) | C17: 2013 | D17: 10 | E17: 135217 | F17: 13521.7 | G17: kr.
B18: Beholderanlæg - højdebeholder | C18: 2013 | D18: 20 | E18: 266775 | F18: 13338.75 | G18: kr.
B19: Pumpestation (inkl. evt. hydrofor)/trykforøger, Konstruktioner | C19: 2013 | D19: 30 | E19: 109389 | F19: 3646.3 | G19: kr.
B20: Etageareal vandbehandlingsbygning | C20: 2013 | D20: 20 | E20: 62749 | F20: 3137.45 | G20: kr.
B21: Etageareal vandbehandlingsbygning | C21: 2013 | D21: 20 | E21: 18218 | F21: 910.9 | G21: kr.
B22: Etageareal vandbehandlingsbygning | C22: 2013 | D22: 20 | E22: 163311 | F22: 8165.55 | G22: kr.
B23: Etageareal vandbehandlingsbygning | C23: 2013 | D23: 20 | E23: 14898 | F23: 744.9 | G23: kr.
B24: Etageareal vandbehandlingsbygning | C24: 2013 | D24: 20 | E24: 15961 | F24: 798.05 | G24: kr.
B25: Tillæg for 2013 | F25: =SUM(F8:F24) -> 178589.8067 | G25: kr.
B26: Tillæg for 2010 - 2012 | F26: 849499.405 | G26: kr.
B27: Samlet tillæg for gennemførte investeringer | F27: =F25+F26 -> 1028089.212 | G27: kr.

Sheet 6. Korrektion investeringer
A1: ='5. Gennemførte investeringer'!A1 -> Verdo Vand A/S
B4: Fane 6. Korrektion af tillæg for planlagte investeringer
B6: Korrektion af tillæg for planlagte investeringer vedr. 2013
B7: Tillæg for planlagte investeringer i 2013 i prisloft 2013 | C7: 252917 | D7: kr.
B8: Tillæg for planlagte investeringer i 2013 i prisloft 2014 | C8: 228160 | D8: kr.
B9: Selskabets faktiske afskrivninger på gennemførte investeringer i 2013 | C9: ='5. Gennemførte investeringer'!F25 -> 178589.8067 | D9: kr.
B10: Korrektion af tillæg for planlagte investeringer vedr. 2013 | C10: =C9-C7+C9-C8 -> -123897.3867 | D10: kr.

Sheet 7. Planlagte investeringer
A1: ='6. Korrektion investeringer'!A1 -> Verdo Vand A/S
B4: Fane 7. Planlagte investeringer
B6: Tillæg for planlagte investeringer i 2014 og 2015
B7: Beskrivelse af investeringen | C7: Årstal | D7: Std. levetid (år) | E7: Anskaffelses-pris (kr.) | F7: Afskrivning
B8: Ø110 mm < Ledningsnet = Ø 250 mm | C8: 2014 | D8: 75 | E8: 221130 | F8: =E8/D8 -> 2948.4 | G8: kr.
B9: Boring (inkl. etablering, forerør, filter og prøvepumpning) | C9: 2014 | D9: 30 | E9: 375000 | F9: =E9/D9 -> 12500 | G9: kr.
B10: Elanlæg - vandværk | C10: 2014 | D10: 25 | E10: 1050000 | F10: =E10/D10 -> 42000 | G10: kr.
B11: Ø110 mm < Ledningsnet = Ø 250 mm | C11: 2014 | D11: 75 | E11: 820000 | F11: 10933.33333 | G11: kr.
B12: Filteranlæg, åbne filtre, enkelt filtrering, Mek./EL | C12: 2014 | D12: 25 | E12: 275000 | F12: 11000 | G12: kr.
B13: Etageareal vandbehandlingsbygning | C13: 2014 | D13: 75 | E13: 44000 | F13: 586.6666667 | G13: kr.
B14: Ø 50mm < Ledningsnet = Ø110 mm | C14: 2014 | D14: 75 | E14: 2510000 | F14: 33466.66667 | G14: kr.
B15: Ø110 mm < Ledningsnet = Ø 250 mm | C15: 2014 | D15: 75 | E15: 1688000 | F15: 22506.66667 | G15: kr.
B16: Stik på ledningsnet, Konstruktioner | C16: 2014 | D16: 75 | E16: 468000 | F16: 6240 | G16: kr.
B17: SRO-anlæg, vandværk | C17: 2014 | D17: 10 | E17: 1500000 | F17: 150000 | G17: kr.
B18: Stik på ledningsnet, Konstruktioner | C18: 2014 | D18: 75 | E18: 225000 | F18: 3000 | G18: kr.
B19: Stik på ledningsnet, Konstruktioner | C19: 2014 | D19: 75 | E19: 300000 | F19: 4000 | G19: kr.
B20: Stik på ledningsnet, Konstruktioner | C20: 2014 | D20: 75 | E20: 225000 | F20: 3000 | G20: kr.
B21: Afregningsmålere, mekaniske | C21: 2014 | D21: 8 | E21: 50000 | F21: 6250 | G21: kr.
B22: Beluftningsanlæg, iltningstrappe, Kontruktioner | C22: 2014 | D22: 20 | E22: 73870 | F22: 3693.5 | G22: kr.
B23: Beluftningsanlæg, iltningstrappe, Kontruktioner | C23: 2014 | D23: 20 | E23: 100000 | F23: 5000 | G23: kr.
B24: Beluftningsanlæg, iltningstrappe, Kontruktioner | C24: 2014 | D24: 20 | E24: 75000 | F24: 3750 | G24: kr.
B25: Solceller | C25: 2014 | D25: 25 | E25: 1050000 | F25: 42000 | G25: kr.
B26: Solceller | C26: 2015 | D26: 25 | E26: 700000 | F26: 28000 | G26: kr.
B27: Ø110 mm < Ledningsnet = Ø 250 mm | C27: 2015 | D27: 75 | E27: 600000 | F27: 8000 | G27: kr.
B28: Råvandsstation komplet montering og boringshus/tørbrønd | C28: 2015 | D28: 30 | E28: 750000 | F28: 25000 | G28: kr.
B29: Elanlæg - vandværk | C29: 2015 | D29: 25 | E29: 700000 | F29: 28000 | G29: kr.
B30: Filteranlæg, åbne filtre, enkelt filtrering, Mek./EL | C30: 2015 | D30: 25 | E30: 850000 | F30: 34000 | G30: kr.
B31: Ø110 mm < Ledningsnet = Ø 250 mm | C31: 2015 | D31: 75 | E31: 200000 | F31: 2666.666667 | G31: kr.
B32: Etageareal vandbehandlingsbygning | C32: 2015 | D32: 75 | E32: 50000 | F32: 666.6666667 | G32: kr.
B33: Udpumpningsanlæg, rentvandspumper på vandværk | C33: 2015 | D33: 25 | E33: 150000 | F33: 6000 | G33: kr.
B34: Ø110 mm < Ledningsnet = Ø 250 mm | C34: 2015 | D34: 75 | E34: 2198000 | F34: 29306.66667 | G34: kr.
B35: Ø 250 mm < Ledningsnet = Ø 500mm | C35: 2015 | D35: 75 | E35: 2574000 | F35: 34320 | G35: kr.
B36: Stik på ledningsnet, Konstruktioner | C36: 2015 | D36: 75 | E36: 528000 | F36: 7040 | G36: kr.
B37: SRO-anlæg, vandværk | C37: 2015 | D37: 10 | E37: 600000 | F37: 60000 | G37: kr.
B38: Stik på ledningsnet, Konstruktioner | C38: 2015 | D38: 75 | E38: 225000 | F38: 3000 | G38: kr.
B39: Stik på ledningsnet, Konstruktioner | C39: 2015 | D39: 75 | E39: 300000 | F39: 4000 | G39: kr.
B40: Stik på ledningsnet, Konstruktioner | C40: 2015 | D40: 75 | E40: 225000 | F40: 3000 | G40: kr.
B41: Afregningsmålere, mekaniske | C41: 2015 | D41: 8 | E41: 50000 | F41: 6250 | G41: kr.
B42: Tillæg for 2014 | F42: =SUMIF(C8:C41,"2014",F8:F41) -> 362875.2333 | G42: kr.
B43: Tillæg for 2015 | F43: =SUMIF(C8:C41,"2015",F8:F41) -> 279250 | G43: kr.
B44: Tillæg i alt | F44: =F42+F43 -> 642125.2333 | G44: kr.

Sheet 8. 1-1 omkostninger
A1: ='7. Planlagte investeringer'!A1 -> Verdo Vand A/S
B4: Fane 8. 1:1 omkostninger
B6: Tillæg for budgetterede 1:1 omkostninger i 2015
B7: Betaling til Forsyningssekretariatet | C7: 33000 | D7: kr.
B8: Selskabsskatter | C8: 500000 | D8: kr.
B9: Tjenestemandspensioner | C9: 26000 | D9: kr.
B10: Ejendomsskatter | C10: 110000 | D10: kr.
B11: Tillæg i alt | C11: =SUM(C7:C10) -> 669000 | D11: kr.
B14: Tillæg for afgift for ledningsført vand i 2015
B15: Afgift for ledningsført vand (6,53 kr./m3) | C15: 14099000 | D15: kr.
B16: Tillæg i alt | C16: =SUM(C15:C15) -> 14099000 | D16: kr.
B19: Tillæg for budgetterede nødvendige udgifter til revisorerklæringer samt ordinært medlemskab af DANVA og FVD i 2015
B20: Betaling for ordinært medlemskab af DANVA/FVD | C20: 120000 | D20: kr.
B21: Betaling for revisorerklæringer | C21: 33000 | D21: kr.
B22: Tillæg i alt | C22: =SUM(C20:C21) -> 153000 | D22: kr.
B25: Korrektion af tillæg for faktiske 1:1 omkostninger (inkl. afgift for ledningsført vand, revisorerklæringer og ordinært medlemskab af DANVA/FVD) i 2013
B26: Selskabets faktiske 1:1 omkostninger mv. i 2013, jf. reguleringsregnskabet | C26: 17265805 | D26: kr.
B27: Tillæg for budgetterede 1:1 omkostninger mv. i prisloft 2013 | C27: 15712822 | D27: kr.
B28: Korrektion af tillæg for budgetterede 1:1 omkostninger mv. i 2013 | C28: =C26-C27 -> 1552983 | D28: kr.

Sheet 9. Miljø- og servicemål
A1: Verdo Vand A/S
B4: Fane 9. Driftsomkostninger til miljø- og servicemål
B6: Tillæg for budgetterede driftsomkostninger til miljø- og servicemål i 2015
B7: Dokumenteret Drikkevandssikkerhed (DDS) | C7: 283000 | D7: kr.
B8: Tillæg i alt | C8: =SUM(C7:C7) -> 283000 | D8: kr.
B12: Korrektion af tillæg for faktiske driftsomkostninger til miljø- og servicemål i 2013
B13: Selskabets faktiske driftsomkostninger til miljø- og servicemål i 2013, jf. reguleringsregnskabet | C13: 383834 | D13: kr.
B14: Tillæg for budgetterede driftsomkostninger til miljø- og servicemål i prisloft 2013 | C14: 418000 | D14: kr.
B15: Korrektion af tillæg for budgetterede driftsomkostninger til miljø- og servicemål i 2013 | C15: =C13-C14 -> -34166 | D15: kr.

Sheet 10. Nettofinansielle poster
A1: ='2. Samlet prisloft'!A1 -> Verdo Vand A/S
B4: Fane 10. Nettofinansielle poster
B6: Tillæg for budgetterede nettofinansielle poster i 2015
B7: Budgetterede renteudgifter og gebyrer i 2015 | C7: 3000000 | D7: kr.
B8: Budgetterede renteindtægter i 2015 | C8: 0 | D8: kr.
B9: Tillæg/fradrag i alt | C9: =C7-C8 -> 3000000 | D9: kr.
B13: Korrektion af tillæg for faktiske nettofinansielle poster i 2013
B14: Selskabets faktiske nettofinansielle poster i 2013, jf. reguleringsregnskabet | C14: 2910119 | D14: kr.
B15: Tillæg for budgetterede nettofinansielle poster i prisloft 2013 | C15: 4450000 | D15: kr.
B16: Korrektion af tillæg for budgetterede nettofinansielle poster i 2013 | C16: =C14-C15 -> -1539881 | D16: kr.

Sheet 11. Over- eller underdækning
A1: ='1. Forside'!A1 -> Verdo Vand A/S
B4: Fane 11. Over- eller underdækning til og med 2010
B6: Tillæg/fradrag for over- eller underdækning til og med 2010
B7: Opgjort over- eller underdækning per 31. december 2010 | C7: -25910177 | D7: kr.
B8: Heraf beløb indregnet i prislofterne for 2011 - 2014 | C8: -7853227.984 | D8: kr.
B9: Endnu ikke indregnet over- eller underdækning | C9: =C7-C8 -> -18056949.02 | D9: kr.
B10: Resterende indregningsperiode (fastsat i prisloftet for 2012) | C10: 6 | D10: år
B11: Tillæg/fradrag i alt | C11: =IF(C7=0,0,C9/C10) -> -3009491.503 | D11: kr.

Sheet 12. Kontrol med indtægtsrammen
A1: ='11. Over- eller underdækning'!A1 -> Verdo Vand A/S
B4: Fane 12. Korrektion for overholdelse af indtægtsrammen i prisloftet for 2013
B6: Samlet opgørelse vedrørende overholdelse af indtægtsrammen i prisloftet for 2013
B7: Indtægtsramme i prisloftet for 2013 | E7: 37220904.25 | F7: kr.
B8: Ikke anvendt likviditet vedrørende investeringer i 2013
B9: Tillæg for historiske investeringer | C9: 8142825.907 | D9: kr.
B10: Tillæg for gennemførte investeringer i 2011 | C10: 684812 | D10: kr.
B11: Korrektion af tillæg for planlagte investeringer i 2011 | C11: -265606 | D11: kr.
B12: Tillæg for planlagte investeringer i 2012 og 2013 | C12: 513800 | D12: kr.
B13: Indtægter fra tilslutningsbidrag | C13: 527847 | D13: kr.
B14: Indtægter fra salg af anlægsaktiver | C14: 0 | D14: kr.
B15: Erstatninger vedr. anlægsaktiver mv. | C15: 0 | D15: kr.
B16: Ekstraordinær effektiviseringsgevinst anvendt til investeringer | C16: 334524 | D16: kr.
B17: Udgifter til investeringer | C17: -9938204 | D17: kr.
B18: Ikke anvendt likviditet vedr. investeringer i alt | C18: =SUM(C9:C17) -> -1.093384048 | D18: kr. | E18: =IF(C18<0,0,-C18) -> 0 | F18: kr.
B19: Ekstraordinære effektiviseringsgevinster anvendt til takstnedsættelse
B20: Ekstraordinær effektiviseringsgevinst anvendt til takstnedsættelse | C20: 0 | D20: kr. | E20: =-C20 -> 0 | F20: kr.
B21: Korrektion af ikke opkrævet tillæg fra 2011 i prisloft 2013
B22: Korrektion af ikke opkrævet tillæg fra 2011 i prisloft 2013 | C22: 0 | D22: kr. | E22: =-C22 -> 0 | F22: kr.
B23: Indtægter fra primære aktiviteter mv.
B24: Indtægter fra kubikmetertakster, faste takster, særbidrag, målergebyrer samt andre takster og gebyrer | C24: 37265082 | D24: kr.
B25: Andre indtægter i prisloftåret, som selskabet har opnået i forbindelse med eller som følge af selskabets primære aktiviteter | C25: 0 | D25: kr.
B26: Indtægter fra primære aktiviteter mv. i alt | C26: =SUM(C24:C25) -> 37265082 | D26: kr. | E26: =-C26 -> -37265082 | F26: kr.
B27: Tillæg/fradrag i prisloftet for 2015 i alt | E27: =E7+E18+E20+E22+E26 -> -44177.75153 | F27: kr.
B31: Oversigt over ekstraordinære effektiviseringsgevinster
C33: 2012 | E33: 2013 | G33: 2014 | I33: 2015 | K33: 2016
B34: Indhentet ekstraordinær effektiviseringsgevinst | C34: 58527 | D34: kr. | E34: 1279051 | F34: kr. | H34: kr. | J34: kr. | L34: kr.
B35: Gevinst anvendt til investeringer | C35: 0 | D35: kr. | E35: 334524 | F35: kr. | H35: kr. | J35: kr. | L35: kr.
B36: Gevinst anvendt til takstnedsættelse | C36: 0 | D36: kr. | E36: 0 | F36: kr. | H36: kr. | J36: kr. | L36: kr.
B37: Korrektion for effektiviseringsgevinst der ikke er anvendt inden 4 år | C37: 0 | D37: kr. | E37: 0 | F37: kr. | H37: kr. | J37: kr. | K37: =IF(C38>SUM(E35:I36),C38-SUM(E35:I36),0)*-1 -> 0 | L37: kr.
B38: Resterende gevinst | C38: =C34-C35-C36 -> 58527 | D38: kr. | E38: =C38+E34-E35-E36 -> 1003054 | F38: kr. | G38: =E38+G34-G35-G36 -> 1003054 | H38: kr. | I38: =G38+I34-I35-I36 -> 1003054 | J38: kr. | K38: =K34-K35-K36+K37+I38 -> 1003054 | L38: kr.
